[Event "Early-Titled-Tuesday-Blitz-September-12-2023"]
[Site "Chess.com"]
[Date "2023.09.12"]
[Round "5"]
[White "kleinebeer98"]
[Black "Shield12"]
[Result "0-1"]
[WhiteElo "2830"]
[BlackElo "2975"]
[TimeControl "180+1"]
[EndTime "8:54:51 PDT"]
[Termination "Shield12 won by checkmate"]

1. e4 {[%clk 0:02:54]} 1... c5 {[%clk 0:03:00.3]} 2. Nf3 {[%clk 0:02:53.1]} 2...
e6 {[%clk 0:03:00.9]} 3. d4 {[%clk 0:02:53.8]} 3... cxd4 {[%clk 0:03:01.8]} 4.
Bg5 {[%clk 0:02:54.3]} 4... Nf6 {[%clk 0:03:00.7]} 5. e5 {[%clk 0:02:54.6]} 5...
h6 {[%clk 0:03:00.6]} 6. Bh4 {[%clk 0:02:55.3]} 6... g5 {[%clk 0:02:58.8]} 7.
exf6 {[%clk 0:02:55.8]} 7... gxh4 {[%clk 0:02:58.6]} 8. Qxd4 {[%clk 0:02:56.6]}
8... Nc6 {[%clk 0:02:53.9]} 9. Qxh4 {[%clk 0:02:57.1]} 9... Qb6 {[%clk
0:02:51.4]} 10. Nbd2 {[%clk 0:02:57.3]} 10... Qxb2 {[%clk 0:02:45.7]} 11. Rb1
{[%clk 0:02:58]} 11... Qxc2 {[%clk 0:02:45.6]} 12. Bb5 {[%clk 0:02:58.8]} 12...
Rg8 {[%clk 0:02:41.6]} 13. O-O {[%clk 0:02:58.8]} 13... Qg6 {[%clk 0:02:40.8]}
14. g3 {[%clk 0:02:58]} 14... Qg4 {[%clk 0:02:40.7]} 15. Rfc1 {[%clk 0:02:57.1]}
15... Qxh4 {[%clk 0:02:38.3]} 16. Nxh4 {[%clk 0:02:58]} 16... a6 {[%clk
0:02:36.5]} 17. Bxc6 {[%clk 0:02:51.9]} 17... bxc6 {[%clk 0:02:25.2]} 18. Nc4
{[%clk 0:02:52.8]} 18... Rg5 {[%clk 0:02:15.8]} 19. Nf3 {[%clk 0:02:27.7]} 19...
Rc5 {[%clk 0:02:12]} 20. Nfe5 {[%clk 0:02:28.3]} 20... d5 {[%clk 0:01:58.2]} 21.
Nb6 {[%clk 0:01:31.4]} 21... Rb8 {[%clk 0:01:57.6]} 22. Na4 {[%clk 0:01:25.7]}
22... Rxb1 {[%clk 0:01:40.1]} 23. Rxb1 {[%clk 0:01:26.6]} 23... Rb5 {[%clk
0:01:40.7]} 24. Rc1 {[%clk 0:01:27.3]} 24... c5 {[%clk 0:01:39.9]} 25. Nc3
{[%clk 0:01:28]} 25... Rb4 {[%clk 0:01:38.7]} 26. Nd3 {[%clk 0:01:28.1]} 26...
Rd4 {[%clk 0:01:36]} 27. Ne5 {[%clk 0:01:28.7]} 27... Bd6 {[%clk 0:01:34.4]} 28.
Nf3 {[%clk 0:01:29.4]} 28... Rc4 {[%clk 0:01:32.6]} 29. Nd2 {[%clk 0:01:30.1]}
29... Rb4 {[%clk 0:01:31.6]} 30. a3 {[%clk 0:01:30.5]} 30... Rb2 {[%clk
0:01:30.2]} 31. Nce4 {[%clk 0:01:28.7]} 31... Be5 {[%clk 0:01:15.6]} 32. Nxc5
{[%clk 0:01:20.5]} 32... Rxd2 {[%clk 0:01:07.9]} 33. Nb3 {[%clk 0:01:18]} 33...
Rb2 {[%clk 0:01:06.6]} 34. Rxc8+ {[%clk 0:01:15]} 34... Kd7 {[%clk 0:01:06.6]}
35. Rf8 {[%clk 0:00:50.5]} 35... Rxb3 {[%clk 0:01:06.3]} 36. Rxf7+ {[%clk
0:00:51.4]} 36... Kd6 {[%clk 0:01:06.9]} 37. Ra7 {[%clk 0:00:51.2]} 37... Rxa3
{[%clk 0:01:04]} 38. f7 {[%clk 0:00:49.9]} 38... Bg7 {[%clk 0:01:04.1]} 39. f4
{[%clk 0:00:49.6]} 39... Rc3 {[%clk 0:00:57.5]} 40. Rxa6+ {[%clk 0:00:48.5]}
40... Rc6 {[%clk 0:00:53.4]} 41. Ra7 {[%clk 0:00:45.3]} 41... Rc7 {[%clk
0:00:50.1]} 42. Ra6+ {[%clk 0:00:44.9]} 42... Ke7 {[%clk 0:00:50.3]} 43. g4
{[%clk 0:00:42.3]} 43... Kxf7 {[%clk 0:00:50]} 44. f5 {[%clk 0:00:43.2]} 44...
exf5 {[%clk 0:00:50.9]} 45. gxf5 {[%clk 0:00:44.1]} 45... Rc2 {[%clk 0:00:49.3]}
46. h4 {[%clk 0:00:43.2]} 46... d4 {[%clk 0:00:48.6]} 47. f6 {[%clk 0:00:42.1]}
47... Bxf6 {[%clk 0:00:48.5]} 48. h5 {[%clk 0:00:43]} 48... Bg5 {[%clk
0:00:48.2]} 49. Rd6 {[%clk 0:00:42.7]} 49... Ke7 {[%clk 0:00:47.6]} 50. Rd5
{[%clk 0:00:41.7]} 50... Ke6 {[%clk 0:00:48.1]} 51. Rxd4 {[%clk 0:00:40.9]}
51... Be3+ {[%clk 0:00:47.8]} 52. Kh1 {[%clk 0:00:41.5]} 52... Rc1+ {[%clk
0:00:45.1]} 53. Rd1 {[%clk 0:00:41.5]} 53... Rxd1+ {[%clk 0:00:45]} 54. Kg2
{[%clk 0:00:41.3]} 54... Ke5 {[%clk 0:00:44.7]} 55. Kf3 {[%clk 0:00:41.8]} 55...
Kd4 {[%clk 0:00:44.2]} 56. Kg4 {[%clk 0:00:42.4]} 56... Ke4 {[%clk 0:00:44.1]}
57. Kh4 {[%clk 0:00:42.5]} 57... Kf3 {[%clk 0:00:43.4]} 58. Kh3 {[%clk
0:00:42.8]} 58... Rh1# {[%clk 0:00:44.3]} 0-1

[Event "Early-Titled-Tuesday-Blitz-September-12-2023"]
[Site "Chess.com"]
[Date "2023.09.12"]
[Round "5"]
[White "ArtemDyachuk"]
[Black "Zampronha1971"]
[Result "0-1"]
[WhiteElo "2538"]
[BlackElo "2338"]
[TimeControl "180+1"]
[EndTime "8:54:51 PDT"]
[Termination "Zampronha1971 won on time"]

1. e4 {[%clk 0:03:00.9]} 1... c5 {[%clk 0:02:59.7]} 2. Nf3 {[%clk 0:03:00.2]}
2... e6 {[%clk 0:03:00.3]} 3. d4 {[%clk 0:02:59.5]} 3... cxd4 {[%clk 0:03:01.2]}
4. Nxd4 {[%clk 0:03:00.4]} 4... Nc6 {[%clk 0:03:01.7]} 5. Nc3 {[%clk 0:02:58.5]}
5... Qc7 {[%clk 0:03:01.7]} 6. Be2 {[%clk 0:02:52.1]} 6... a6 {[%clk 0:03:02.1]}
7. Be3 {[%clk 0:02:50.5]} 7... Nf6 {[%clk 0:03:02.5]} 8. O-O {[%clk 0:02:50.1]}
8... Bb4 {[%clk 0:03:03]} 9. Na4 {[%clk 0:02:50]} 9... Be7 {[%clk 0:03:01]} 10.
Nxc6 {[%clk 0:02:49.8]} 10... bxc6 {[%clk 0:03:00.1]} 11. Nb6 {[%clk 0:02:49.9]}
11... Rb8 {[%clk 0:03:00.4]} 12. Nxc8 {[%clk 0:02:50.5]} 12... Qxc8 {[%clk
0:03:01.3]} 13. Bd4 {[%clk 0:02:48.6]} 13... c5 {[%clk 0:02:56.8]} 14. Be5
{[%clk 0:02:45.2]} 14... Rb6 {[%clk 0:02:51.3]} 15. a4 {[%clk 0:02:42.1]} 15...
d6 {[%clk 0:02:48.6]} 16. Bc3 {[%clk 0:02:28]} 16... O-O {[%clk 0:02:45]} 17. a5
{[%clk 0:02:23.2]} 17... Rb8 {[%clk 0:02:41.7]} 18. Qd3 {[%clk 0:02:21.7]} 18...
Ra8 {[%clk 0:02:05.6]} 19. Qg3 {[%clk 0:02:16.6]} 19... e5 {[%clk 0:01:54.3]}
20. Bf3 {[%clk 0:02:09.7]} 20... Qc6 {[%clk 0:01:51.6]} 21. Rfe1 {[%clk
0:01:56.1]} 21... Ne8 {[%clk 0:01:50.7]} 22. h4 {[%clk 0:01:47.3]} 22... Nc7
{[%clk 0:01:51.1]} 23. Red1 {[%clk 0:01:27.3]} 23... Nb5 {[%clk 0:01:50.8]} 24.
Bd2 {[%clk 0:01:12.3]} 24... Nd4 {[%clk 0:01:48.9]} 25. Bh6 {[%clk 0:00:54.8]}
25... Bf6 {[%clk 0:01:44.8]} 26. c3 {[%clk 0:00:47.4]} 26... Nxf3+ {[%clk
0:01:44.1]} 27. gxf3 {[%clk 0:00:48.3]} 27... Rfb8 {[%clk 0:01:40]} 28. Kh1
{[%clk 0:00:40.6]} 28... Kh8 {[%clk 0:01:39.4]} 29. Bg5 {[%clk 0:00:34.8]} 29...
Bxg5 {[%clk 0:01:37.4]} 30. Qxg5 {[%clk 0:00:35.7]} 30... Rxb2 {[%clk
0:01:25.5]} 31. Qe7 {[%clk 0:00:24.4]} 31... Rxf2 {[%clk 0:01:06.9]} 32. Kg1
{[%clk 0:00:18.4]} 32... Rxf3 {[%clk 0:01:02.1]} 33. Rxd6 {[%clk 0:00:16.4]}
33... Qe8 {[%clk 0:01:00.2]} 34. Qg5 {[%clk 0:00:09.2]} 34... h6 {[%clk
0:00:31.1]} 35. Rxh6+ {[%clk 0:00:02.1]} 35... gxh6 {[%clk 0:00:29.2]} 36. Qxh6+
{[%clk 0:00:03]} 36... Kg8 {[%clk 0:00:29.7]} 37. Kg2 {[%clk 0:00:03]} 37... Rf4
{[%clk 0:00:25.6]} 0-1

[Event "Early-Titled-Tuesday-Blitz-September-12-2023"]
[Site "Chess.com"]
[Date "2023.09.12"]
[Round "5"]
[White "ivana_999"]
[Black "nitpicker"]
[Result "0-1"]
[WhiteElo "2030"]
[BlackElo "2279"]
[TimeControl "180+1"]
[EndTime "8:54:51 PDT"]
[Termination "nitpicker won by resignation"]

1. d4 {[%clk 0:03:00.9]} 1... Nf6 {[%clk 0:02:59.4]} 2. c4 {[%clk 0:03:01.4]}
2... e6 {[%clk 0:02:59.3]} 3. Nc3 {[%clk 0:02:58.6]} 3... Bb4 {[%clk 0:02:58.1]}
4. a3 {[%clk 0:02:58.3]} 4... Bxc3+ {[%clk 0:02:57.7]} 5. bxc3 {[%clk 0:02:59]}
5... d6 {[%clk 0:02:54.4]} 6. f3 {[%clk 0:02:56.9]} 6... Nfd7 {[%clk 0:02:46.3]}
7. e4 {[%clk 0:02:55.8]} 7... e5 {[%clk 0:02:46.5]} 8. Be3 {[%clk 0:02:47.9]}
8... Nc6 {[%clk 0:02:45.4]} 9. Nh3 {[%clk 0:02:43.2]} 9... b6 {[%clk 0:02:41.3]}
10. Nf2 {[%clk 0:02:42.2]} 10... Ba6 {[%clk 0:02:36.4]} 11. Bd3 {[%clk
0:02:31.4]} 11... Na5 {[%clk 0:02:31.8]} 12. Qe2 {[%clk 0:02:27.8]} 12... O-O
{[%clk 0:02:29.7]} 13. O-O {[%clk 0:02:26.6]} 13... f6 {[%clk 0:02:15.2]} 14.
Rab1 {[%clk 0:02:13.5]} 14... Qe7 {[%clk 0:02:07.8]} 15. Kh1 {[%clk 0:02:09.4]}
15... Qf7 {[%clk 0:02:07.3]} 16. d5 {[%clk 0:02:03.1]} 16... Rac8 {[%clk
0:01:55.4]} 17. Nh3 {[%clk 0:01:54.5]} 17... c6 {[%clk 0:01:52.7]} 18. Rfc1
{[%clk 0:01:53.3]} 18... Rc7 {[%clk 0:01:40.7]} 19. Nf2 {[%clk 0:01:50.6]} 19...
Rfc8 {[%clk 0:01:37.2]} 20. Bd2 {[%clk 0:01:44]} 20... Nc5 {[%clk 0:01:34.2]}
21. Nd1 {[%clk 0:01:37.9]} 21... Nxd3 {[%clk 0:01:30.9]} 22. Qxd3 {[%clk
0:01:35.1]} 22... Bxc4 {[%clk 0:01:30.8]} 23. Qc2 {[%clk 0:01:32.7]} 23... cxd5
{[%clk 0:01:31]} 24. Ne3 {[%clk 0:01:29.5]} 24... dxe4 {[%clk 0:01:17]} 25. fxe4
{[%clk 0:01:28.6]} 25... Be6 {[%clk 0:01:11.8]} 26. c4 {[%clk 0:01:25.9]} 26...
Nxc4 {[%clk 0:01:09.5]} 27. Nxc4 {[%clk 0:01:17.3]} 27... Rxc4 {[%clk
0:01:09.3]} 28. Qd3 {[%clk 0:01:17.4]} 28... Rd4 {[%clk 0:00:51.5]} 29. Rxc8+
{[%clk 0:01:14.3]} 29... Bxc8 {[%clk 0:00:52.4]} 30. Qc2 {[%clk 0:01:09.2]}
30... Qc4 {[%clk 0:00:44.6]} 31. Rc1 {[%clk 0:01:05.4]} 31... Qxc2 {[%clk
0:00:44.1]} 32. Rxc2 {[%clk 0:01:05.6]} 32... Ba6 {[%clk 0:00:38.9]} 33. h3
{[%clk 0:00:58.7]} 33... Bd3 {[%clk 0:00:34.5]} 34. Rc7 {[%clk 0:00:55.9]} 34...
Bxe4 {[%clk 0:00:32.2]} 35. Bb4 {[%clk 0:00:56.1]} 35... Rd3 {[%clk 0:00:24.8]}
36. Rxa7 {[%clk 0:00:55.1]} 36... Rxh3+ {[%clk 0:00:22.4]} 37. Kg1 {[%clk
0:00:54.2]} 37... Rg3 {[%clk 0:00:23]} 38. Bxd6 {[%clk 0:00:52.1]} 38... Rxg2+
{[%clk 0:00:22]} 39. Kf1 {[%clk 0:00:52.6]} 39... Rd2 {[%clk 0:00:21.5]} 40. Bb4
{[%clk 0:00:51.6]} 40... Rc2 {[%clk 0:00:20.1]} 41. Re7 {[%clk 0:00:50.7]} 41...
h5 {[%clk 0:00:19.4]} 42. Re8+ {[%clk 0:00:48.6]} 42... Kh7 {[%clk 0:00:18.9]}
43. Rb8 {[%clk 0:00:49]} 43... h4 {[%clk 0:00:16.3]} 44. Rxb6 {[%clk 0:00:32.8]}
44... h3 {[%clk 0:00:15.7]} 45. Kg1 {[%clk 0:00:29.1]} 45... h2+ {[%clk
0:00:15.1]} 0-1

[Event "Early-Titled-Tuesday-Blitz-September-12-2023"]
[Site "Chess.com"]
[Date "2023.09.12"]
[Round "5"]
[White "Alexandr_Predke"]
[Black "amintabatabaei"]
[Result "0-1"]
[WhiteElo "2882"]
[BlackElo "3051"]
[TimeControl "180+1"]
[EndTime "8:54:53 PDT"]
[Termination "amintabatabaei won on time"]

1. Nf3 {[%clk 0:03:00.9]} 1... d5 {[%clk 0:03:00.1]} 2. g3 {[%clk 0:03:01.3]}
2... Nf6 {[%clk 0:03:00.6]} 3. Bg2 {[%clk 0:03:01.6]} 3... c6 {[%clk 0:03:01.3]}
4. O-O {[%clk 0:03:01.5]} 4... Bg4 {[%clk 0:03:02.1]} 5. h3 {[%clk 0:03:02.1]}
5... Bxf3 {[%clk 0:03:02.4]} 6. Bxf3 {[%clk 0:03:03]} 6... e5 {[%clk 0:03:02.9]}
7. d4 {[%clk 0:03:01.1]} 7... Nbd7 {[%clk 0:02:52.6]} 8. c4 {[%clk 0:03:00.3]}
8... dxc4 {[%clk 0:02:53.2]} 9. Nd2 {[%clk 0:02:55.6]} 9... exd4 {[%clk
0:02:52.2]} 10. Nxc4 {[%clk 0:02:55.7]} 10... Bc5 {[%clk 0:02:42.4]} 11. Bd2
{[%clk 0:02:27.8]} 11... O-O {[%clk 0:02:40]} 12. b4 {[%clk 0:02:27.5]} 12...
Be7 {[%clk 0:02:18.8]} 13. a4 {[%clk 0:02:24.9]} 13... Nb6 {[%clk 0:02:16.3]}
14. Na5 {[%clk 0:02:23.6]} 14... Qd7 {[%clk 0:02:16.2]} 15. Bg2 {[%clk
0:02:16.1]} 15... Rad8 {[%clk 0:02:16.3]} 16. b5 {[%clk 0:02:14.1]} 16... Nbd5
{[%clk 0:02:13.3]} 17. bxc6 {[%clk 0:02:08.3]} 17... bxc6 {[%clk 0:02:14.2]} 18.
Qc2 {[%clk 0:01:59.8]} 18... c5 {[%clk 0:02:11.9]} 19. Rab1 {[%clk 0:01:57.4]}
19... Rb8 {[%clk 0:02:09.2]} 20. Qc4 {[%clk 0:01:54.1]} 20... h6 {[%clk
0:01:59.9]} 21. Rb5 {[%clk 0:01:53.2]} 21... a6 {[%clk 0:01:49.6]} 22. Rbb1
{[%clk 0:01:36.1]} 22... Rfc8 {[%clk 0:01:26.7]} 23. Rfc1 {[%clk 0:01:33.2]}
23... Bf8 {[%clk 0:01:10.7]} 24. Kh2 {[%clk 0:01:18.5]} 24... Qe6 {[%clk
0:00:55.2]} 25. Rxb8 {[%clk 0:01:01.4]} 25... Rxb8 {[%clk 0:00:56.1]} 26. Nb3
{[%clk 0:01:01.8]} 26... Nc3 {[%clk 0:00:46.5]} 27. Qxe6 {[%clk 0:00:57.6]}
27... fxe6 {[%clk 0:00:47.4]} 28. Na5 {[%clk 0:00:25.9]} 28... Nxe2 {[%clk
0:00:47.2]} 29. Re1 {[%clk 0:00:26.6]} 29... d3 {[%clk 0:00:47.8]} 30. Bf3
{[%clk 0:00:21.5]} 30... Rb2 {[%clk 0:00:47.8]} 31. Rd1 {[%clk 0:00:07.3]} 31...
Nd4 {[%clk 0:00:27.9]} 32. Bb7 {[%clk 0:00:04.1]} 32... Nd5 {[%clk 0:00:27.8]}
33. Kg2 {[%clk 0:00:02.9]} 33... Nb4 {[%clk 0:00:21.9]} 34. Bxb4 {[%clk
0:00:02.2]} 34... Rxb4 {[%clk 0:00:22.8]} 35. Bxa6 {[%clk 0:00:01.6]} 35... Rxa4
{[%clk 0:00:19.6]} 0-1

[Event "Early-Titled-Tuesday-Blitz-September-12-2023"]
[Site "Chess.com"]
[Date "2023.09.12"]
[Round "5"]
[White "Eloist"]
[Black "grzechu96"]
[Result "1-0"]
[WhiteElo "2489"]
[BlackElo "2655"]
[TimeControl "180+1"]
[EndTime "8:54:55 PDT"]
[Termination "Eloist won on time"]

1. e4 {[%clk 0:03:00.9]} 1... c5 {[%clk 0:02:56.9]} 2. Nf3 {[%clk 0:03:00.3]}
2... e6 {[%clk 0:02:55.1]} 3. d4 {[%clk 0:02:59.8]} 3... cxd4 {[%clk 0:02:56]}
4. Nxd4 {[%clk 0:03:00.1]} 4... Nc6 {[%clk 0:02:54.7]} 5. Nc3 {[%clk 0:02:59.5]}
5... Qc7 {[%clk 0:02:54.8]} 6. Be3 {[%clk 0:02:58.3]} 6... a6 {[%clk 0:02:54.3]}
7. Bd3 {[%clk 0:02:57.1]} 7... b5 {[%clk 0:02:46.4]} 8. Nxc6 {[%clk 0:02:56.1]}
8... Qxc6 {[%clk 0:02:45.3]} 9. O-O {[%clk 0:02:50]} 9... Bb7 {[%clk 0:02:22.4]}
10. a3 {[%clk 0:02:43.9]} 10... Nf6 {[%clk 0:02:21.4]} 11. Qe2 {[%clk
0:02:16.8]} 11... Be7 {[%clk 0:02:06.9]} 12. f4 {[%clk 0:02:13.3]} 12... Bc5
{[%clk 0:01:59.4]} 13. Bxc5 {[%clk 0:02:06.6]} 13... Qxc5+ {[%clk 0:02:00.3]}
14. Kh1 {[%clk 0:02:06.6]} 14... d6 {[%clk 0:01:43.5]} 15. e5 {[%clk 0:01:59.4]}
15... dxe5 {[%clk 0:01:26.4]} 16. fxe5 {[%clk 0:01:57.7]} 16... Nd7 {[%clk
0:01:23.4]} 17. Be4 {[%clk 0:01:17.7]} 17... Bxe4 {[%clk 0:00:41.2]} 18. Qxe4
{[%clk 0:00:53.1]} 18... O-O {[%clk 0:00:39.2]} 19. Rae1 {[%clk 0:00:37.9]}
19... Rad8 {[%clk 0:00:30.8]} 20. Rf3 {[%clk 0:00:19.3]} 20... g6 {[%clk
0:00:28.1]} 21. h3 {[%clk 0:00:18.2]} 21... Kg7 {[%clk 0:00:13]} 22. Qf4 {[%clk
0:00:17.7]} 22... Qc7 {[%clk 0:00:10.2]} 23. Qg3 {[%clk 0:00:15.2]} 23... Qb8
{[%clk 0:00:08.2]} 24. Rfe3 {[%clk 0:00:11.7]} 24... a5 {[%clk 0:00:07.4]} 25.
Qf4 {[%clk 0:00:10.7]} 25... b4 {[%clk 0:00:06.8]} 26. axb4 {[%clk 0:00:11]}
26... axb4 {[%clk 0:00:07.7]} 27. Nd1 {[%clk 0:00:10.2]} 27... Rc8 {[%clk
0:00:04.4]} 28. R3e2 {[%clk 0:00:09]} 28... Qb5 {[%clk 0:00:03]} 29. Nf2 {[%clk
0:00:08.7]} 29... Rc5 {[%clk 0:00:02.3]} 30. Ng4 {[%clk 0:00:08.6]} 30... h6
{[%clk 0:00:01.2]} 31. Qxh6+ {[%clk 0:00:08.1]} 31... Kg8 {[%clk 0:00:01.7]} 32.
Nf6+ {[%clk 0:00:08.4]} 32... Nxf6 {[%clk 0:00:02]} 33. exf6 {[%clk 0:00:09]}
1-0

[Event "Early-Titled-Tuesday-Blitz-September-12-2023"]
[Site "Chess.com"]
[Date "2023.09.12"]
[Round "5"]
[White "zano2023"]
[Black "gaby_przz"]
[Result "0-1"]
[WhiteElo "2079"]
[BlackElo "2408"]
[TimeControl "180+1"]
[EndTime "8:54:56 PDT"]
[Termination "gaby_przz won by resignation"]

1. d4 {[%clk 0:02:55.9]} 1... Nf6 {[%clk 0:02:57.3]} 2. Nd2 {[%clk 0:02:54.4]}
2... d5 {[%clk 0:02:53.8]} 3. Ngf3 {[%clk 0:02:53.9]} 3... e6 {[%clk 0:02:54.1]}
4. e3 {[%clk 0:02:54.7]} 4... c5 {[%clk 0:02:53.8]} 5. c3 {[%clk 0:02:54.1]}
5... Nc6 {[%clk 0:02:54.5]} 6. Bd3 {[%clk 0:02:54.7]} 6... Be7 {[%clk 0:02:55]}
7. O-O {[%clk 0:02:55.4]} 7... O-O {[%clk 0:02:55.7]} 8. dxc5 {[%clk 0:02:56.1]}
8... Bxc5 {[%clk 0:02:55.3]} 9. e4 {[%clk 0:02:56.8]} 9... e5 {[%clk 0:02:42.7]}
10. Qe2 {[%clk 0:02:55.7]} 10... Re8 {[%clk 0:02:41.3]} 11. b4 {[%clk
0:02:41.5]} 11... Bb6 {[%clk 0:02:32.5]} 12. a4 {[%clk 0:02:40.4]} 12... d4
{[%clk 0:02:28.1]} 13. Bb2 {[%clk 0:02:28.9]} 13... Bg4 {[%clk 0:02:24.7]} 14.
h3 {[%clk 0:02:25.8]} 14... dxc3 {[%clk 0:02:20.6]} 15. Bxc3 {[%clk 0:02:25.2]}
15... Bd4 {[%clk 0:02:21.3]} 16. hxg4 {[%clk 0:02:08.5]} 16... Bxc3 {[%clk
0:02:20]} 17. Rac1 {[%clk 0:02:05.7]} 17... Bxb4 {[%clk 0:02:03.6]} 18. Bb5
{[%clk 0:01:52]} 18... Bxd2 {[%clk 0:01:55.8]} 19. Qxd2 {[%clk 0:01:36.5]} 19...
Nxe4 {[%clk 0:01:26.8]} 20. Qe3 {[%clk 0:01:25.2]} 20... Nf6 {[%clk 0:01:21.2]}
21. g5 {[%clk 0:01:22.7]} 21... Nd5 {[%clk 0:01:20]} 22. Qe4 {[%clk 0:01:18.3]}
22... Ndb4 {[%clk 0:01:08.4]} 23. Rfd1 {[%clk 0:01:15.2]} 23... Qe7 {[%clk
0:01:07]} 24. Rxc6 {[%clk 0:01:09.6]} 24... bxc6 {[%clk 0:01:03.7]} 25. Bc4
{[%clk 0:01:00.2]} 25... Qc5 {[%clk 0:00:09.6]} 26. Rc1 {[%clk 0:00:55.2]} 26...
Qd6 {[%clk 0:00:07.2]} 27. a5 {[%clk 0:00:36.8]} 27... Nd5 {[%clk 0:00:07.4]}
28. Nh4 {[%clk 0:00:34.7]} 28... g6 {[%clk 0:00:06.6]} 29. Nf3 {[%clk 0:00:29]}
29... Rad8 {[%clk 0:00:06.4]} 30. a6 {[%clk 0:00:26.6]} 30... Qa3 {[%clk
0:00:05.9]} 31. Kh2 {[%clk 0:00:23.8]} 31... Qxc1 {[%clk 0:00:05.5]} 32. Nxe5
{[%clk 0:00:21.3]} 32... Qf4+ {[%clk 0:00:04.3]} 33. Qxf4 {[%clk 0:00:20.9]}
33... Nxf4 {[%clk 0:00:05.2]} 34. Ng4 {[%clk 0:00:20.8]} 34... Kg7 {[%clk
0:00:04.2]} 35. Nf6 {[%clk 0:00:20.5]} 35... Re7 {[%clk 0:00:04.7]} 36. g3
{[%clk 0:00:19.3]} 36... Nd5 {[%clk 0:00:05.2]} 37. f4 {[%clk 0:00:19.1]} 37...
Nxf6 {[%clk 0:00:05.5]} 0-1

[Event "Early-Titled-Tuesday-Blitz-September-12-2023"]
[Site "Chess.com"]
[Date "2023.09.12"]
[Round "5"]
[White "Murad_Ibrahimli"]
[Black "djano"]
[Result "0-1"]
[WhiteElo "2884"]
[BlackElo "2646"]
[TimeControl "180+1"]
[EndTime "8:54:58 PDT"]
[Termination "djano won by resignation"]

1. d4 {[%clk 0:03:00.9]} 1... d5 {[%clk 0:02:59.8]} 2. c4 {[%clk 0:02:59.6]}
2... e6 {[%clk 0:03:00.3]} 3. Nc3 {[%clk 0:02:59.4]} 3... c5 {[%clk 0:03:00.6]}
4. cxd5 {[%clk 0:02:59.4]} 4... exd5 {[%clk 0:03:00.8]} 5. Nf3 {[%clk
0:02:59.5]} 5... Nc6 {[%clk 0:02:59.7]} 6. g3 {[%clk 0:03:00.1]} 6... Nf6 {[%clk
0:02:59.4]} 7. Bg2 {[%clk 0:03:00.5]} 7... Be7 {[%clk 0:03:00.1]} 8. O-O {[%clk
0:02:59.9]} 8... O-O {[%clk 0:03:00.4]} 9. dxc5 {[%clk 0:03:00.6]} 9... Bxc5
{[%clk 0:03:01.3]} 10. Bg5 {[%clk 0:03:00.8]} 10... d4 {[%clk 0:02:59.6]} 11.
Bxf6 {[%clk 0:03:00.1]} 11... Qxf6 {[%clk 0:02:59.3]} 12. Nd5 {[%clk 0:03:00.8]}
12... Qd8 {[%clk 0:02:57.7]} 13. Nd2 {[%clk 0:03:01.1]} 13... Re8 {[%clk
0:02:53.4]} 14. Rc1 {[%clk 0:03:00.4]} 14... Bf8 {[%clk 0:02:50.1]} 15. Nf4
{[%clk 0:02:59.2]} 15... Qa5 {[%clk 0:02:33.9]} 16. a3 {[%clk 0:02:54.2]} 16...
Bd7 {[%clk 0:02:29.9]} 17. Nc4 {[%clk 0:02:47]} 17... Qd8 {[%clk 0:02:22.5]} 18.
Qb3 {[%clk 0:02:46.1]} 18... Rb8 {[%clk 0:02:10]} 19. Bf3 {[%clk 0:02:42.3]}
19... b5 {[%clk 0:01:49.2]} 20. Nd2 {[%clk 0:02:38.8]} 20... Ne5 {[%clk
0:01:47.8]} 21. Bd5 {[%clk 0:02:38.6]} 21... Bf5 {[%clk 0:01:27.8]} 22. Nf3
{[%clk 0:02:30.9]} 22... Qf6 {[%clk 0:00:58.2]} 23. Nxd4 {[%clk 0:02:21.7]}
23... Bd7 {[%clk 0:00:49.1]} 24. Nf3 {[%clk 0:02:20.2]} 24... Nc4 {[%clk
0:00:47.7]} 25. Rfd1 {[%clk 0:02:16.5]} 25... Bg4 {[%clk 0:00:45.1]} 26. Kg2
{[%clk 0:02:09]} 26... g6 {[%clk 0:00:43.5]} 27. h3 {[%clk 0:02:02.5]} 27... Bf5
{[%clk 0:00:41.2]} 28. e4 {[%clk 0:01:34.8]} 28... Bxe4 {[%clk 0:00:34]} 29.
Bxe4 {[%clk 0:01:34.3]} 29... Rxe4 {[%clk 0:00:34.9]} 30. Nd5 {[%clk 0:01:34.9]}
30... Qd8 {[%clk 0:00:26]} 31. Nc3 {[%clk 0:01:32.5]} 31... Qe8 {[%clk
0:00:23.9]} 32. Nxe4 {[%clk 0:01:33]} 32... Qxe4 {[%clk 0:00:24.8]} 33. Rd4
{[%clk 0:01:32.1]} 33... Qa8 {[%clk 0:00:23.2]} 34. Re1 {[%clk 0:01:22.2]} 34...
Bg7 {[%clk 0:00:21.2]} 35. Rf4 {[%clk 0:01:21.7]} 35... Bxb2 {[%clk 0:00:14.8]}
36. Kh2 {[%clk 0:01:13.4]} 36... Bxa3 {[%clk 0:00:13.6]} 37. Rxc4 {[%clk
0:01:09.8]} 37... bxc4 {[%clk 0:00:13.9]} 38. Qxa3 {[%clk 0:01:09.8]} 38... Rb3
{[%clk 0:00:14.6]} 39. Qa4 {[%clk 0:00:56.3]} 39... Qxf3 {[%clk 0:00:15.2]} 40.
Kg1 {[%clk 0:00:56.8]} 40... Rb2 {[%clk 0:00:13.8]} 41. Rf1 {[%clk 0:00:47.6]}
41... c3 {[%clk 0:00:14.1]} 42. Qxa7 {[%clk 0:00:47.3]} 42... c2 {[%clk
0:00:12.7]} 43. Qa1 {[%clk 0:00:41.3]} 43... Qb3 {[%clk 0:00:12.1]} 44. Qa8+
{[%clk 0:00:41.6]} 44... Kg7 {[%clk 0:00:11.9]} 45. Qd8 {[%clk 0:00:35.6]} 45...
Qc3 {[%clk 0:00:11]} 0-1